bitfinex-derivatives/quotes_ETHF0:USTF0_20240915
["timestamp","ask_amount","ask_price","bid_price","bid_amount"]
[1726441399097,1.9663,2345.4,2345.3,2.3210735]
[1726441401095,1.9663,2345.4,2345.3,4.04772666]
[1726441402205,1.9663,2345.4,2345.3,4.60904702]
[1726441405805,1.9663,2345.4,2345.3,4.60993885]
[1726441406006,1.54,2345.4,2345.3,4.60993898]
[1726441406205,1.54,2345.4,2345.3,2.93306512]
[1726441409207,1.9663,2345.4,2345.3,2.93306512]
[1726441409404,1.9663,2345.4,2345.3,3.83125881]
[1726441410508,1.9663,2345.4,2345.3,3.8298304]
[1726441410907,2.3788,2345.4,2345.3,3.8298304]
[1726441412207,2.3788,2345.4,2345.3,2.15243671]
[1726441414208,2.3788,2345.4,2345.3,4.38717998]
[1726441415617,2.3788,2345.4,2345.3,4.38521338]
[1726441417907,2.3788,2345.4,2345.3,3.95889338]
[1726441418108,7.70855,2345.4,2345.3,1.72415011]
[1726441418413,0.42632,2345.3,2345.2,2.23474327]
[1726441418613,5.75612,2345.3,2345.2,3.40353837]
[1726441418814,11.75612,2345.3,2345.2,2.84392745]
[1726441419020,11.75612,2345.3,2345.2,1.11941603]
[1726441419216,11.3298,2345.3,2345.0,1.11941603]
[1726441419531,0.42641,2344.8,2344.7,1.77802695]
[1726441419720,0.42641,2344.8,2344.4,2.89242909]
[1726441419721,1.49249,2344.7,2344.6,1.67902695]
[1726441420019,1.49262,2344.5,2344.4,1.67898939]
[1726441420217,0.42653,2344.1,2344.0,0.3982]
[1726441420414,1.96653,2344.1,2344.0,0.3982]
[1726441420724,0.42658,2343.9,2343.6,3.2078]
[1726441420913,3.2078,2344.2,2343.8,0.3982]
[1726441421115,3.2078,2344.2,2344.0,0.42655]
[1726441421116,1.54,2344.1,2344.0,0.42655]
[1726441421920,0.482,2344.6,2344.2,0.4265]
[1726441421921,3.6898,2344.6,2344.2,0.4265]
[1726441422110,3.6898,2344.6,2344.3,1.21879]
[1726441422111,3.33,2344.4,2344.3,1.21879]
[1726441423121,3.2078,2344.6,2344.5,0.42646]
[1726441423419,3.33,2344.6,2344.5,0.42644]
[1726441423720,3.33,2344.6,2344.4,0.42647]
[1726441424017,3.33,2344.6,2344.4,0.42648]
[1726441424221,3.33,2344.6,2344.5,0.42646]
[1726441425016,3.33,2344.6,2344.3,0.7923]
[1726441425017,3.33,2344.6,2344.4,0.42647]
[1726441425219,3.33,2344.5,2344.3,1.21878]
[1726441425424,3.33,2344.5,2344.3,0.7923]
[1726441425619,3.75647,2344.5,2344.3,0.7923]
[1726441425814,0.42648,2344.4,2344.3,0.4121]
[1726441426220,4.69208,2344.4,2344.1,0.3991]
[1726441426522,3.33,2344.2,2344.1,0.3991]
[1726441427726,0.42655,2344.0,2343.9,0.4112]
[1726441427922,3.75655,2344.0,2343.6,0.82571]
[1726441428116,3.33,2343.8,2343.7,0.42661]
[1726441428322,3.33,2343.8,2343.6,0.7978]
[1726441430532,3.33,2343.8,2343.2,0.099]
[1726441430533,0.42668,2343.3,2343.2,0.099]
[1726441430821,6.5378,2343.3,2342.9,1.34328722]
[1726441431124,3.33,2343.3,2342.9,0.8098]
[1726441431823,3.33,2343.3,2342.9,4.44435]
[1726441432019,3.33,2343.3,2342.9,4.0176]
[1726441432213,3.33,2343.3,2342.8,0.42677]
[1726441432214,3.2078,2343.0,2342.7,0.099]
[1726441432415,3.2078,2343.0,2342.5,0.115]
[1726441432416,3.33,2342.8,2342.5,0.099]
[1726441432622,3.33,2342.6,2342.4,0.7825]
[1726441433018,3.3068,2343.0,2342.4,0.7825]
[1726441433019,3.33,2342.7,2342.4,0.7825]
[1726441433224,3.33,2342.5,2342.4,0.7825]
[1726441434315,3.33,2342.7,2342.4,0.7825]
[1726441434516,3.33,2342.7,2342.4,1.20933]
[1726441435121,0.099,2343.0,2342.5,7.4766]
[1726441435420,3.33,2343.1,2342.7,0.42678]
[1726441435615,3.33,2343.1,2342.8,0.42677]
[1726441435916,3.33,2343.1,2342.9,0.4143]
[1726441436118,3.33,2343.1,2342.9,0.8038]
[1726441436325,3.33,2343.1,2343.0,3.2078]
[1726441437426,3.33,2343.1,2342.9,0.8038]
[1726441440532,3.33,2343.1,2342.9,1.23055]
[1726441440836,3.33,2343.0,2342.9,0.8038]
[1726441441219,3.33,2343.0,2342.7,3.2078]
[1726441441430,3.33,2342.8,2342.5,0.099]
[1726441441634,3.33,2342.6,2342.2,0.099]
[1726441441834,3.33,2342.3,2342.0,3.2078]
[1726441442128,3.33,2342.3,2341.8,3.2078]
[1726441442338,3.33,2342.3,2342.1,0.4269]
[1726441442634,3.33,2342.3,2341.6,0.099]
[1726441442635,0.42697,2341.7,2341.6,0.099]
[1726441442834,0.42697,2341.7,2341.1,0.099]
[1726441442835,6.66,2341.7,2341.1,0.099]
[1726441443026,6.66,2341.7,2339.8,2.23474327]
[1726441443027,6.5378,2341.2,2340.4,3.4218]
[1726441443223,6.5378,2341.2,2340.1,0.21757786]
[1726441443224,3.33,2341.2,2340.7,3.2078]
[1726441443421,3.33,2341.2,2340.1,0.21757786]
[1726441443422,3.33,2341.0,2340.4,3.2078]
[1726441443620,3.2078,2341.5,2339.9,3.544]
[1726441443621,3.33,2340.8,2339.9,0.214]
[1726441443832,3.75714,2340.8,2339.9,0.214]
[1726441444032,3.2078,2340.9,2340.1,3.2078]
[1726441444329,0.6106,2341.6,2340.7,7.4798]
[1726441444540,0.214,2341.8,2341.2,3.2078]
[1726441444722,4.1,2341.6,2341.2,3.2078]
[1726441444925,7.3078,2341.6,2340.9,0.42711]
[1726441445226,7.3078,2341.6,2340.8,3.2078]
[1726441445227,7.3078,2341.6,2340.8,8.16445495]
[1726441445424,4.1,2341.3,2340.8,8.16445495]
[1726441445624,4.1,2341.3,2340.8,3.2078]
[1726441445825,7.3078,2341.3,2340.7,0.4129]
[1726441446222,7.3078,2341.3,2340.6,0.54946062]
[1726441446427,0.8284,2341.2,2340.6,0.54946062]
[1726441447138,4.1,2340.7,2340.6,0.54946062]
[1726441447337,0.42725,2340.2,2339.8,0.099]
[1726441447529,4.1,2340.3,2339.6,3.6112]
[1726441447723,0.099,2340.5,2339.6,3.6112]
[1726441448134,0.099,2340.5,2339.9,3.2078]
[1726441448429,0.099,2340.5,2339.9,3.63509]
[1726441448628,0.099,2340.5,2339.9,3.2078]
[1726441448827,0.099,2340.5,2340.0,4.80022423]
[1726441449032,3.3068,2340.8,2340.0,0.42728]
[1726441449329,3.3068,2340.8,2340.2,3.2078]
[1726441449555,3.2078,2340.8,2340.2,3.2078]
[1726441450225,3.2078,2340.8,2340.3,0.3824]
[1726441450532,4.1,2340.9,2340.3,0.3824]
[1726441451133,0.099,2341.0,2340.3,0.3824]
[1726441451134,0.099,2341.0,2340.5,3.63499]
[1726441451437,0.099,2341.3,2340.5,3.2078]
[1726441451623,0.099,2341.4,2341.2,3.2078]
[1726441451827,3.7387,2341.7,2340.8,3.2078]
[1726441452140,3.7387,2341.7,2340.5,0.099]
[1726441452141,3.2078,2341.7,2341.1,3.2078]
[1726441452329,3.2078,2341.7,2341.2,0.3947]
[1726441453536,3.2078,2341.7,2341.2,0.82175]
[1726441453839,3.2078,2341.7,2341.4,0.42703]
[1726441454135,3.2078,2341.7,2341.2,0.3947]
[1726441454438,3.2078,2341.7,2341.4,0.42701]
[1726441454731,3.2078,2341.7,2341.5,0.427]
[1726441455035,3.2078,2341.7,2341.4,4.69742]
[1726441455429,3.2078,2341.7,2341.5,4.2704]
[1726441455624,3.2078,2341.7,2341.3,0.42704]
[1726441456233,3.2078,2341.7,2341.4,0.42702]
[1726441457339,3.2078,2341.7,2341.3,0.42704]
[1726441457732,3.2078,2341.7,2341.4,0.42703]
[1726441458339,3.2078,2341.7,2341.3,0.42703]
[1726441458539,4.1,2341.5,2340.8,4.149]
[1726441458740,4.52701,2341.5,2340.9,0.42711]
[1726441459239,4.52701,2341.5,2340.9,3.63491]
[1726441459441,3.63478,2341.7,2340.9,3.2078]
[1726441459641,3.2078,2341.7,2341.4,0.42702]
[1726441459839,0.42693,2342.0,2341.4,0.42702]
[1726441460032,0.42693,2342.0,2341.5,0.427]
[1726441460227,7.8337,2342.1,2341.6,0.42698]
[1726441460433,0.42692,2342.0,2341.5,3.6348]
[1726441460636,7.3078,2342.1,2341.5,3.2078]
[1726441460936,0.42692,2342.0,2341.5,3.63479]
[1726441461234,7.3078,2342.1,2341.5,3.2078]
[1726441461635,7.73471,2342.1,2341.6,0.42698]
[1726441462740,7.3078,2342.1,2341.7,0.42696]
[1726441462937,3.2078,2342.1,2341.7,0.42696]
[1726441463339,4.231,2342.3,2341.5,3.2078]
[1726441463340,0.52586,2342.3,2341.5,3.2078]
[1726441463537,0.52586,2342.3,2341.8,0.42694]
[1726441463734,3.2078,2342.4,2341.6,4.93375687]
[1726441463939,0.42687,2342.3,2341.8,0.42694]
[1726441464136,0.42688,2342.2,2341.8,0.42694]
[1726441464532,0.42688,2342.2,2341.7,0.42696]
[1726441465139,3.2078,2342.4,2341.8,0.42694]
[1726441465543,0.42689,2342.2,2341.7,0.42696]
[1726441466438,0.42689,2342.2,2341.8,0.42695]
[1726441466935,0.4269,2342.1,2341.7,0.42696]
[1726441467137,0.4269,2342.1,2341.8,0.42695]
[1726441467740,0.42689,2342.2,2341.8,0.42695]
[1726441468237,0.42687,2342.3,2341.8,3.2078]
[1726441468436,3.2078,2342.4,2341.8,3.2078]
[1726441468437,3.63465,2342.4,2342.0,0.42691]
[1726441468737,3.2078,2342.4,2342.1,0.42689]
[1726441469044,0.42686,2342.3,2341.9,0.82562]
[1726441469845,0.42688,2342.2,2341.9,0.82562]
[1726441470441,4.8923,2342.5,2342.0,0.4269]
[1726441471037,4.8923,2342.5,2342.0,0.42691]
[1726441471243,4.8923,2342.5,2342.1,0.42689]
[1726441471439,0.42689,2342.2,2341.9,0.3987]
[1726441471835,0.42687,2342.3,2341.9,0.3987]
[1726441472061,3.63465,2342.4,2341.9,0.82562]
[1726441472736,3.63465,2342.4,2341.9,0.3987]
[1726441472937,3.63465,2342.4,2341.9,0.82563]
[1726441473135,3.2078,2342.4,2342.2,0.42688]
[1726441473335,3.2078,2342.4,2342.2,0.42687]
[1726441474349,0.5258,2342.7,2342.0,0.415]
[1726441474350,0.099,2342.7,2342.3,0.42686]
[1726441474543,4.132,2342.8,2342.3,0.42686]
[1726441474747,0.4268,2342.7,2342.2,0.42687]
[1726441475246,0.4268,2342.7,2342.3,0.42686]
[1726441476348,0.4268,2342.7,2342.2,5.2584194]
[1726441476652,0.4268,2342.7,2342.3,0.42686]
[1726441476852,4.52681,2342.6,2342.2,4.8315494]
[1726441477057,4.52681,2342.6,2341.9,0.3987]
[1726441477058,4.1,2342.3,2341.9,0.3987]
[1726441477240,4.1,2342.3,2341.2,3.2078]
[1726441477241,0.427,2341.6,2341.2,3.2078]
[1726441477447,0.427,2341.6,2341.2,4.03256]
[1726441477743,7.73478,2341.7,2341.2,4.03256]
[1726441477946,0.42699,2341.6,2341.2,4.03256]
[1726441478145,7.73478,2341.7,2341.2,4.03256]
[1726441478347,7.73479,2341.7,2341.2,3.6055]
[1726441478544,0.427,2341.6,2341.2,3.6055]
[1726441479046,0.42701,2341.5,2341.2,3.6055]
[1726441479252,0.427,2341.6,2341.2,3.6055]
[1726441479956,7.73478,2341.7,2341.2,3.6055]
[1726441480150,7.3078,2341.7,2341.3,0.42704]
[1726441480355,7.3078,2341.7,2341.2,3.6055]
[1726441480550,7.3078,2341.7,2341.3,0.42704]
[1726441480754,7.3078,2341.7,2341.2,4.03256]
[1726441481153,7.3078,2341.7,2341.2,3.6055]
[1726441481348,3.2078,2341.3,2340.6,3.2078]
[1726441481547,4.1,2341.0,2340.6,3.2078]
[1726441481757,4.5952,2341.3,2340.6,3.2078]
[1726441481948,4.5952,2341.3,2340.6,3.63497]
[1726441482152,4.199,2341.3,2340.7,0.42714]
[1726441482546,4.199,2341.3,2340.8,4.71422492]
[1726441482750,0.4975,2341.5,2340.9,3.2078]
[1726441482751,0.3825,2341.5,2340.9,3.2078]
[1726441482947,11.5388,2341.6,2340.9,3.6349]
[1726441482948,7.4068,2341.6,2340.9,3.6349]
[1726441483151,3.3068,2341.6,2341.0,0.3814]
[1726441483353,7.3078,2341.6,2341.1,0.3856]
[1726441484152,7.3078,2341.6,2340.4,4.149]
[1726441484153,7.3078,2341.6,2340.6,3.2078]
[1726441484362,4.1,2341.3,2340.7,0.81275]
[1726441484660,4.1,2341.3,2340.7,5.34392224]
[1726441484960,4.1,2341.3,2340.7,4.91677224]
[1726441485655,7.3078,2341.3,2340.7,0.3856]
[1726441487363,7.3078,2341.3,2340.7,0.81275]
[1726441487555,7.3078,2341.3,2340.7,0.3856]
[1726441487754,4.1,2341.3,2340.8,0.42712]
[1726441488454,4.1,2341.3,2340.7,0.81275]
[1726441490066,4.1,2341.3,2340.8,0.42713]
[1726441491065,4.1,2341.3,2340.7,0.81275]
[1726441491560,4.1,2341.3,2340.8,0.42713]
[1726441491957,7.3078,2341.3,2340.8,0.42713]
[1726441492262,7.73485,2341.3,2340.7,0.81274]
[1726441492966,7.73485,2341.3,2340.8,0.42713]
[1726441493365,4.1,2340.9,2340.7,0.3856]
[1726441495067,4.52712,2340.9,2340.7,0.3856]
[1726441495367,0.42714,2340.8,2340.3,0.42722]
[1726441495568,4.1,2340.6,2340.0,3.2078]
[1726441495768,4.1,2340.1,2340.0,3.2078]
[1726441495968,4.1,2340.1,2339.8,0.4062]
[1726441496169,4.52727,2340.1,2339.8,0.4062]
[1726441496467,4.1,2340.1,2339.8,0.4062]
[1726441496679,4.52727,2340.1,2339.8,0.4062]
[1726441497064,4.1,2340.1,2339.8,0.4062]
[1726441497269,4.52727,2340.1,2339.8,0.4062]
[1726441497564,4.1,2340.1,2339.8,0.4062]
[1726441497766,4.1,2340.1,2339.8,0.83351]
[1726441497969,4.52726,2340.1,2339.8,0.4062]
[1726441498157,4.52726,2340.1,2339.8,0.83352]
[1726441498158,4.1,2340.1,2339.8,0.83352]
[1726441498561,4.1,2340.1,2339.8,0.4062]
[1726441499375,4.1,2340.1,2339.7,0.42733]
[1726441499574,4.1,2340.1,2339.8,0.42731]
[1726441499965,4.1,2340.1,2339.6,0.3815]
[1726441500268,4.52726,2340.1,2339.7,0.42733]
[1726441500467,0.099,2340.3,2339.6,0.3815]
[1726441500468,4.1,2339.8,2339.6,0.3815]
[1726441500678,4.1,2339.8,2339.6,0.80884]
[1726441500867,4.1,2339.8,2339.6,0.3815]
[1726441501376,4.1,2339.8,2339.6,0.80885]
[1726441501969,4.1,2339.8,2339.6,0.3815]
[1726441502368,4.1,2339.8,2339.7,0.42734]
[1726441502570,4.231,2340.3,2339.6,0.3815]
[1726441502969,4.1,2340.1,2339.9,0.42729]
[1726441503567,4.1,2340.1,2339.6,0.42735]
[1726441503568,7.3078,2340.1,2339.6,0.42735]
[1726441503770,7.3078,2340.1,2339.8,0.42731]
[1726441503968,7.3078,2340.1,2339.7,0.82602]
[1726441504174,7.3078,2340.1,2339.8,0.42731]
[1726441504577,7.3078,2340.1,2339.7,0.3987]
[1726441504777,7.3078,2340.1,2339.8,0.42731]
[1726441504980,7.3078,2340.1,2339.7,0.82603]
[1726441505177,7.3078,2340.1,2339.8,0.42732]
[1726441505575,4.1,2340.1,2339.9,0.42728]
[1726441506276,4.1,2340.1,2339.8,4.83998714]
[1726441506474,4.1,2340.1,2339.7,0.82603]
[1726441506880,4.1,2340.1,2339.8,0.42731]
[1726441507782,4.1,2340.1,2339.9,0.42729]
[1726441508181,3.3068,2340.4,2340.0,0.42728]
[1726441508374,3.63502,2340.4,2340.0,0.42728]
[1726441508575,3.2078,2340.4,2340.1,0.42725]
[1726441508771,3.2078,2340.4,2340.2,0.4134]
[1726441509183,3.63501,2340.4,2340.2,0.4134]
[1726441509384,3.2078,2340.4,2340.2,0.4134]
[1726441510686,4.1,2340.5,2340.3,0.42721]
[1726441510879,4.1,2340.5,2340.4,0.42721]
[1726441511980,3.6233,2340.7,2340.2,0.4134]
[1726441512184,3.6233,2340.7,2340.4,0.4272]
[1726441512375,3.6233,2340.7,2340.3,0.42721]
[1726441512577,3.6233,2340.7,2340.5,0.42719]
[1726441513289,3.2078,2340.7,2340.6,0.42717]
[1726441513492,3.2078,2340.7,2340.3,0.3992]
[1726441513785,3.2078,2340.7,2340.6,0.42717]
[1726441514386,4.1,2340.8,2340.7,0.42715]
[1726441514584,0.4788,2341.1,2340.4,0.3961]
[1726441514585,4.5788,2341.1,2340.8,0.42712]
[1726441514781,4.4798,2341.1,2340.7,0.42714]
[1726441514978,4.4798,2341.1,2340.8,0.3803]
[1726441515283,3.2078,2340.9,2340.4,4.44500081]
[1726441515481,4.1,2340.7,2340.3,0.42721]
[1726441515790,4.1,2340.7,2340.2,0.3803]
[1726441516287,4.1,2340.7,2340.5,0.42718]
[1726441516493,4.1,2340.7,2340.2,0.3803]
[1726441516494,4.1,2340.7,2340.6,0.42717]
[1726441516688,4.1,2340.7,2340.3,4.78110554]
[1726441516689,3.2078,2340.9,2340.7,0.42715]
[1726441516993,3.2078,2340.9,2340.8,0.4144]
[1726441517695,3.2078,2340.9,2340.8,0.84154]
[1726441518383,3.2078,2340.9,2340.8,0.4144]
[1726441518989,4.1,2341.0,2340.8,0.84154]
[1726441519187,4.1,2341.0,2340.9,0.42712]
[1726441519494,0.099,2341.3,2341.2,0.42706]
[1726441519686,0.4207,2341.6,2341.0,0.3807]
[1726441519687,4.1,2341.5,2341.0,0.3807]
[1726441519991,4.1,2341.1,2340.9,3.63491]
[1726441520190,4.1,2341.1,2341.0,0.4271]
[1726441520389,4.5135,2341.4,2341.0,4.6991]
[1726441520589,4.5135,2341.4,2341.0,0.4271]
[1726441521289,4.5135,2341.4,2340.9,3.63491]
[1726441521587,4.5135,2341.4,2340.9,3.2078]
[1726441521796,4.5135,2341.4,2341.0,0.42709]
[1726441522289,4.1,2341.4,2341.0,0.42709]
[1726441522496,4.1,2341.4,2341.1,0.42707]
[1726441523396,4.1,2341.4,2341.0,0.4071]
[1726441523789,0.099,2341.6,2341.0,0.4071]
[1726441523790,0.099,2341.6,2341.1,4.68458022]
[1726441524096,4.199,2341.8,2341.3,0.42703]
[1726441524398,4.1,2341.8,2341.4,0.3883]
[1726441525196,0.4212,2342.0,2341.7,0.42697]
[1726441525392,0.4212,2342.0,2341.5,4.48593524]
[1726441525393,4.1,2342.1,2341.5,4.48593524]
[1726441525595,4.1,2342.1,2341.6,0.3995]
[1726441525792,4.1,2342.1,2341.8,0.42694]
[1726441526188,4.1,2342.1,2341.8,0.42695]
[1726441526388,4.1,2342.1,2341.9,0.4212]
[1726441527099,4.6209,2342.4,2341.9,0.4212]
[1726441527399,4.5219,2342.4,2341.9,0.4212]
[1726441527595,4.5219,2342.4,2342.0,0.42691]
[1726441529199,4.1,2342.1,2341.9,0.4212]
[1726441529801,4.52691,2342.1,2341.9,0.4212]
[1726441530390,4.1,2342.1,2341.9,0.4212]
[1726441530600,4.2696,2342.0,2341.3,0.3996]
[1726441530793,4.1,2341.5,2341.4,0.42703]
[1726441530990,4.1,2341.5,2341.3,0.3996]
[1726441531196,4.1,2341.5,2341.3,0.82663]
[1726441531593,4.1,2341.5,2341.3,0.3996]
[1726441532198,4.1,2341.5,2341.2,0.42706]
[1726441532393,4.1,2341.5,2341.3,0.42704]
[1726441532988,4.1,2341.5,2341.3,0.42703]
[1726441533193,4.1,2341.5,2341.3,0.42704]
[1726441533500,4.1,2341.5,2341.2,0.42705]
[1726441533888,4.1,2341.5,2341.1,0.3889]
[1726441533889,4.1,2341.5,2341.3,0.42703]
[1726441535005,0.4909,2342.0,2341.4,4.2712]
[1726441535304,4.1,2341.7,2341.5,0.4164]
[1726441535498,4.1,2341.7,2341.4,5.0820298]
[1726441536404,4.1,2341.7,2341.5,0.427]
[1726441536602,4.1,2341.7,2341.6,0.4085]
[1726441537904,3.2078,2341.9,2341.6,4.6789]
[1726441538099,4.1,2342.1,2341.7,0.42696]
[1726441538503,4.1,2342.1,2341.6,0.83548]
[1726441539621,4.1,2342.1,2341.7,0.42696]
[1726441539806,4.5269,2342.1,2341.7,0.4053]
[1726441540509,0.42692,2342.0,2341.7,0.4053]
[1726441540806,4.52691,2342.1,2341.7,0.4053]
[1726441542007,3.33,2341.8,2341.7,0.4053]
[1726441542408,3.33,2341.8,2341.7,5.10267]
[1726441542905,3.33,2342.0,2341.9,0.42693]
[1726441545209,3.33,2342.0,2341.8,0.42695]
[1726441546003,3.33,2342.0,2341.7,1.25286]
[1726441546207,3.33,2342.0,2341.7,0.8259]
[1726441547004,3.33,2342.0,2341.9,0.42693]
[1726441551104,3.33,2342.0,2341.7,0.8259]
[1726441551304,3.33,2342.0,2341.8,0.42694]
[1726441551616,3.33,2342.0,2341.9,0.42693]
[1726441551813,3.33,2342.0,2341.7,0.83225]
[1726441552915,3.33,2342.0,2341.1,5.98519082]
[1726441552916,3.33,2341.8,2341.1,5.98519082]
[1726441553113,3.33,2341.8,2341.2,0.42]
[1726441553114,3.33,2341.3,2341.2,0.42]
[1726441553311,3.33,2341.3,2341.0,0.3869]
[1726441553509,3.2078,2341.4,2341.0,0.3869]
[1726441553510,3.33,2341.1,2341.0,0.3869]
[1726441553915,3.33,2341.1,2340.9,0.42711]
[1726441554215,3.33,2341.1,2340.8,0.84713]
[1726441554517,3.33,2341.1,2340.8,0.42]
[1726441554709,3.33,2341.1,2340.9,0.42712]
[1726441555213,3.33,2341.1,2340.8,0.42]
[1726441555214,3.33,2341.1,2340.8,0.84713]
[1726441556010,3.33,2340.9,2340.8,0.42]
[1726441556617,3.33,2340.9,2340.8,4.692]
[1726441556916,3.33,2340.9,2340.8,0.42]
[1726441557218,3.33,2340.9,2340.8,4.692]
[1726441558008,3.33,2340.9,2340.8,0.42]
[1726441562411,3.33,2340.9,2340.5,1.11090411]
[1726441562612,3.33,2340.9,2340.6,0.7827]
[1726441562811,3.33,2340.9,2340.8,0.42714]
[1726441563121,3.33,2340.9,2340.7,0.42714]
[1726441563620,3.33,2340.9,2340.8,0.42714]
[1726441563821,3.33,2340.9,2340.7,0.42714]
[1726441564119,3.33,2340.9,2340.6,5.24982979]
[1726441564120,3.33,2340.9,2340.8,0.42714]
[1726441566018,3.33,2340.9,2340.7,0.42715]
[1726441566325,3.33,2340.9,2340.8,0.42714]
[1726441567017,3.33,2340.9,2340.8,4.69914]
[1726441567226,3.33,2340.9,2340.7,0.42715]
[1726441567520,3.33,2340.9,2340.8,4.948301]
[1726441567914,3.33,2340.9,2340.8,4.69914]
[1726441568725,0.42715,2340.7,2340.5,1.11090411]
[1726441568912,0.42715,2340.7,2340.3,2.23474327]
[1726441568913,0.3826,2340.6,2340.2,0.3933]
[1726441569112,3.33,2340.3,2340.2,0.3933]
[1726441569323,3.33,2340.3,2340.0,0.4202]
[1726441570620,3.33,2340.3,2340.0,0.84748]
[1726441571013,3.33,2340.3,2340.0,0.4202]
[1726441571519,3.33,2340.3,2339.9,0.3933]
[1726441571717,3.33,2340.0,2339.9,0.3933]
[1726441574030,3.2078,2340.1,2339.9,0.3933]
[1726441574523,3.33,2340.0,2339.9,0.3933]
[1726441575227,3.2078,2340.1,2339.9,0.3933]
[1726441575423,3.2078,2340.1,2339.9,0.82059]
[1726441576319,3.2078,2340.1,2339.9,0.3933]
[1726441576725,3.2078,2340.1,2339.9,0.82059]
[1726441576921,3.33,2340.4,2340.1,0.42725]
[1726441577233,3.33,2340.4,2340.2,0.42724]
[1726441577429,3.7126,2340.6,2340.0,7.89328243]
[1726441577720,0.099,2340.7,2340.5,0.42719]
[1726441577929,6.5378,2340.8,2340.6,0.4141]
[1726441578129,6.5378,2340.8,2340.6,0.84127]
[1726441578433,6.5378,2340.8,2340.6,0.4141]
[1726441578617,6.5378,2340.8,2340.6,0.84127]
[1726441578818,6.5378,2340.8,2340.6,0.4141]
[1726441584730,6.5378,2340.8,2340.6,0.84126]
[1726441584919,6.5378,2340.8,2340.6,0.4141]
[1726441586936,6.5378,2340.8,2340.6,0.84127]
[1726441587232,6.5378,2340.8,2340.6,0.4141]
[1726441587433,6.5378,2340.8,2340.6,0.84127]
[1726441588436,3.33,2341.0,2340.6,0.4141]
[1726441588732,3.33,2341.0,2340.6,0.84126]
[1726441590738,3.33,2341.0,2340.6,0.4141]
[1726441591041,3.33,2341.0,2340.6,0.84126]
[1726441591839,3.33,2341.0,2340.7,0.42715]
[1726441592343,3.33,2341.0,2340.6,0.84126]
[1726441592649,3.33,2340.8,2340.6,0.4141]
[1726441593033,3.33,2340.8,2340.5,0.42718]
[1726441593229,3.33,2340.6,2340.4,0.3811]
[1726441593536,3.33,2340.5,2340.1,0.42726]
[1726441593737,3.33,2340.2,2340.1,0.42726]
[1726441593940,2.68876151,2340.2,2340.1,0.42726]
[1726441598438,2.68876151,2340.2,2340.1,1.53816411]
[1726441602348,2.68876151,2340.2,2340.1,1.11090411]
[1726441602547,2.68876151,2340.2,2340.1,1.53816411]
[1726441603447,2.68876151,2340.2,2340.1,3.21646338]
[1726441603639,6.5378,2340.4,2340.3,0.42723]
[1726441603838,3.33,2340.4,2340.3,0.42723]
[1726441604038,0.4163,2340.5,2340.4,0.42721]
[1726441604342,0.4163,2340.5,2340.3,0.42721]
[1726441605447,3.33,2340.7,2340.3,0.42721]
[1726441605746,3.33,2340.7,2340.3,0.84571]
[1726441606837,3.33,2340.7,2340.3,1.95661411]
[1726441608847,3.33,2340.5,2340.3,1.95661411]
[1726441609048,3.33,2340.5,2340.4,0.42721]
[1726441609241,3.33,2340.5,2340.3,1.52940411]
[1726441609846,3.33,2340.5,2340.3,1.95662411]
[1726441610549,3.33,2340.5,2340.3,1.95661411]
[1726441613548,3.33,2340.5,2340.3,1.52940411]
[1726441613749,3.33,2340.5,2340.3,1.95661411]
[1726441616656,3.33,2340.5,2340.4,1.11090411]
[1726441617058,3.33,2340.5,2340.3,1.95661411]
[1726441617451,3.33,2340.5,2340.4,1.11090411]
[1726441619259,3.2078,2340.6,2340.5,0.42719]
[1726441619458,3.2078,2340.6,2340.5,0.81959]
[1726441619855,3.2078,2340.6,2340.5,0.3924]
[1726441620556,3.2078,2340.6,2340.5,0.81959]
[1726441620857,3.2078,2340.6,2340.5,0.3924]
[1726441621349,3.2078,2340.6,2340.5,1.50330411]
[1726441621557,3.2078,2340.6,2340.5,1.93049411]
[1726441622165,3.2078,2340.6,2340.5,1.50330411]
[1726441622353,3.2078,2340.6,2340.5,1.93049411]
[1726441622659,3.2078,2340.6,2340.5,1.50330411]
[1726441623359,3.2078,2340.6,2340.5,3.18125793]
[1726441624053,4.7478,2340.6,2340.5,3.18125793]
[1726441625457,4.7478,2340.6,2340.5,3.18127096]
[1726441625956,4.7478,2340.6,2340.5,1.50330411]
[1726441626148,4.7478,2340.6,2340.5,3.18128248]
[1726441627162,9.44777,2340.6,2340.5,2.78888248]
[1726441627456,9.44777,2340.6,2340.4,1.11090411]
[1726441627457,9.0206,2340.6,2340.4,1.11090411]
[1726441627655,9.44779,2340.6,2340.4,1.11090411]
[1726441628162,3.33,2340.5,2340.4,1.11090411]
[1726441628647,1.06803,2340.4,2340.2,1.03368671]
[1726441628852,1.06803,2340.4,2339.8,0.4273]
[1726441628853,0.42726,2340.1,2339.8,2.23474327]
[1726441629059,0.4123,2340.0,2339.9,1.68233675]
[1726441629259,3.7423,2340.0,2339.9,1.68233675]
[1726441629449,3.7423,2340.0,2339.9,1.67450785]